{"text_format":"3","workbook":"xlsx","n_sheets":1,"sheets":["Blutdruck und Glukose"],"not_rendered":{"defined_names":9},"read":"whole","date_system":"1900"}

{"sheet":"Blutdruck und Glukose","index":0,"n_rows":13,"n_cols":11,"rows_kept":13,"merged":[[0,1,4,3],[0,4,0,9],[1,4,1,6],[1,7,1,9]]}
[null,"Blutdruck- und Glukosetracker",null,null,"Passen Sie die Skalierungswerte in den Zellen E2 bis J5 unten an."]
[{"$nulls":4},"BLUTDRUCK",null,null,"GLUKOSESKALA"]
[{"$nulls":4},120,"SYSTOLISCH",140,70,100,150]
[{"$nulls":4},80,"DIASTOLISCH",90,"NIEDRIG","NORMAL","HOCH"]
[{"$nulls":4},"ZIELBLUTDRUCK",null,"HAUSARZT ANRUFEN"]
[null,"Datum","Uhrzeit","Ereignis","Systolisch","Diastolisch","Herzfrequenz","Glukose","Spiegel","Status","Anmerkungen"]
[null,{"$f":"TODAY()","v":"2022-08-03"},"06:00:00","Beim Aufstehen",129,79,72,55,{"$f":"BloodPressureAndGlucose[[#This Row],[Glukose]]","v":55},{"$f":"IFERROR(IF(BloodPressureAndGlucose[[#This Row],[Spiegel]]=0,\"\",IF(BloodPressureAndGlucose[[#This Row],[Spiegel]]<=GNiedrig,\"Niedrig\",IF(AND(BloodPressureAndGlucose[[#This Row],[Spiegel]]>GNiedrig,BloodPressureAndGlucose[[#This Row],[Spiegel]]<GHoch),\"Normal\",\"Hoch\"))), \"\")","v":"Niedrig"}]
[null,{"$f":"TODAY()","v":"2022-08-03"},"07:00:00","Vor dem Essen",120,80,74,70,{"$f":"BloodPressureAndGlucose[[#This Row],[Glukose]]","v":70},{"$f":"IFERROR(IF(BloodPressureAndGlucose[[#This Row],[Spiegel]]=0,\"\",IF(BloodPressureAndGlucose[[#This Row],[Spiegel]]<=GNiedrig,\"Niedrig\",IF(AND(BloodPressureAndGlucose[[#This Row],[Spiegel]]>GNiedrig,BloodPressureAndGlucose[[#This Row],[Spiegel]]<GHoch),\"Normal\",\"Hoch\"))), \"\")","v":"Niedrig"}]
[null,"2022-08-03","09:00:00","Nach dem Essen",133,80,75,75,{"$f":"BloodPressureAndGlucose[[#This Row],[Glukose]]","v":75},{"$f":"IFERROR(IF(BloodPressureAndGlucose[[#This Row],[Spiegel]]=0,\"\",IF(BloodPressureAndGlucose[[#This Row],[Spiegel]]<=GNiedrig,\"Niedrig\",IF(AND(BloodPressureAndGlucose[[#This Row],[Spiegel]]>GNiedrig,BloodPressureAndGlucose[[#This Row],[Spiegel]]<GHoch),\"Normal\",\"Hoch\"))), \"\")","v":"Normal"}]
[null,"2022-08-03","10:00:00","Nur BD",143,91,75,190,{"$f":"BloodPressureAndGlucose[[#This Row],[Glukose]]","v":190},{"$f":"IFERROR(IF(BloodPressureAndGlucose[[#This Row],[Spiegel]]=0,\"\",IF(BloodPressureAndGlucose[[#This Row],[Spiegel]]<=GNiedrig,\"Niedrig\",IF(AND(BloodPressureAndGlucose[[#This Row],[Spiegel]]>GNiedrig,BloodPressureAndGlucose[[#This Row],[Spiegel]]<GHoch),\"Normal\",\"Hoch\"))), \"\")","v":"Hoch"}]
[null,"2022-08-03","12:00:00","Vor dem Essen",141,84,70,140,{"$f":"BloodPressureAndGlucose[[#This Row],[Glukose]]","v":140},{"$f":"IFERROR(IF(BloodPressureAndGlucose[[#This Row],[Spiegel]]=0,\"\",IF(BloodPressureAndGlucose[[#This Row],[Spiegel]]<=GNiedrig,\"Niedrig\",IF(AND(BloodPressureAndGlucose[[#This Row],[Spiegel]]>GNiedrig,BloodPressureAndGlucose[[#This Row],[Spiegel]]<GHoch),\"Normal\",\"Hoch\"))), \"\")","v":"Normal"}]
[null,{"$f":"TODAY()","v":"2022-08-03"},"15:00:00","Nach dem Essen",132,80,68,90,{"$f":"BloodPressureAndGlucose[[#This Row],[Glukose]]","v":90},{"$f":"IFERROR(IF(BloodPressureAndGlucose[[#This Row],[Spiegel]]=0,\"\",IF(BloodPressureAndGlucose[[#This Row],[Spiegel]]<=GNiedrig,\"Niedrig\",IF(AND(BloodPressureAndGlucose[[#This Row],[Spiegel]]>GNiedrig,BloodPressureAndGlucose[[#This Row],[Spiegel]]<GHoch),\"Normal\",\"Hoch\"))), \"\")","v":"Normal"},"BD-Medikament zum Essen eingenommen"]
[null,"Mittelwerte",null,null,{"$f":"SUBTOTAL(101,BloodPressureAndGlucose[Systolisch])","v":133},{"$f":"SUBTOTAL(101,BloodPressureAndGlucose[Diastolisch])","v":{"v":82.33333333333333,"d":"82"}},{"$f":"SUBTOTAL(101,BloodPressureAndGlucose[Herzfrequenz])","v":{"v":72.33333333333333,"d":"72"}},{"$f":"SUBTOTAL(101,BloodPressureAndGlucose[Glukose])","v":{"v":103.33333333333333,"d":"103"}}]